Cogmind - Beta 10.1 @@@ ROGUE MODE // 2020.09.28 @ 20:10:45 Player: Bert Result: Destroyed by S-10 Pest with Light Assault Rifle Performance ------------- Evolutions (1) 500 Regions Visited (2) 400 Robots Destroyed (15) 75 Value Destroyed (369) 369 Prototype IDs (0) 0 Alien Tech Used (0) 0 Bonus (0) 0 TOTAL SCORE: 1344 Bonus ------- None Cogmind --------- Core Integrity 0/400 Matter 290/300 Energy 89/100 System Corruption 0% Temperature Cool (0) Movement Core (150) Ox2 Location -9/Materials Parts ------- > --- POWER (2) -------- (None) > --- PROPULSION (2) --- (None) > --- UTILITY (3) ------ Small Storage Unit Signal Interpreter Light Armor Plating > --- WEAPON (2) ------- (None) > --- INVENTORY (6) ---- Ion Engine Ion Engine Peak State ------------ > --- POWER ------------ Ion Engine Ion Engine > --- PROPULSION ------- Light Treads > --- UTILITY ---------- Improved Heat Sink Small Storage Unit Signal Interpreter > --- WEAPON ----------- Mining Laser > --- INVENTORY -------- (None) [Rating: 9] Favorites ----------- Power Ion Engine Engine Ion Engine Propulsion Light Treads Treads Light Treads Utility Small Storage Unit Device Sensor Array Storage Small Storage Unit Processor Signal Interpreter Protection Light Armor Plating Weapon Assault Rifle Energy Gun Small Laser Ballistic Gun Assault Rifle Launcher Grenade Launcher Special Weapon Mining Laser Build | -11 -10 -9 ------- Run | Scr Mat Mat Slots Evolved 2 | . . 2 Power 1 | . . 1 Propulsion . | . . . Utility 1 | . . 1 Weapon . | . . . Parts Attached 18 | 6 2 10 Power 5 | 1 . 4 Engine 5 | 1 . 4 Core . | . . . Reactor . | . . . Propulsion 2 | 2 . . Treads 2 | 2 . . Leg . | . . . Wheel . | . . . Hover . | . . . Flight . | . . . Utility 5 | 1 1 3 Device 2 | . . 2 Storage 1 | 1 . . Processor 1 | . 1 . Hackware . | . . . Protection 1 | . . 1 Artifact . | . . . Weapon 6 | 2 1 3 Energy Gun 2 | 1 . 1 Energy Cannon . | . . . Ballistic Gun 2 | 1 . 1 Ballistic Cannon . | . . . Launcher 1 | . 1 . Special Weapon 1 | . . 1 Impact Weapon . | . . . Slashing Weapon . | . . . Piercing Weapon . | . . . Special Melee Weapon . | . . . Unidentified Prototypes . | . . . Parts Lost 12 | . 1 11 Power 3 | . 1 2 Propulsion 2 | . . 2 Utility 2 | . . 2 Weapon 5 | . . 5 Highest Loss Streak 5 | . 1 5 Average Slot Usage (%) 79 | . 94 66 Engine 11 | . 12 10 Treads 20 | . 28 13 Device 4 | . . 8 Storage 12 | . 14 11 Processor 10 | . 10 11 Ballistic Gun 10 | . 14 7 Launcher 7 | . 12 2 Special Weapon 1 | . . 1 Naked Turns . | . . . Heaviest Build 16 | 12 14 16 Greatest Support 40 | 40 40 40 Greatest Overweight (x) 4 | 2 . 4 Average Overweight (x) . | . . . Largest Inventory Capacity 6 | 6 6 6 Average Capacity 5 | 5 6 6 Most Carried 4 | 3 4 4 Average Carried 2 | 2 3 1 Final Capacity 6 | 6 6 6 Final Carried 4 | 2 4 2 Class Distribution -------------------- 100% | Mutant Dominant Class ---------------- Mutant | -10/Materials Mutant | -9/Materials Resources | -11 -10 -9 ----------- Run | Scr Mat Mat Matter Collected 526 | 188 33 305 Remotely . | . . . Salvage Created 369 | . 90 279 Parts 30 | . 12 18 Haulers Intercepted . | . . . Recyclers Shooed 2 | . 1 1 Parts Field Recycled . | . . . Retrieved Matter . | . . . Parts Self-Destructed . | . . . Prevented . | . . . Kills | -11 -10 -9 ------- Run | Scr Mat Mat Combat Hostiles Destroyed 11 | . 4 7 Guns 7 | . 1 6 Cannons 1 | . . 1 AOE 3 | . 3 . Classes Destroyed 6 | . 5 1 Worker 2 | . 2 . Builder 1 | . 1 . Operator 1 | . 1 . Swarmer 3 | . 3 . Grunt 7 | . 1 6 Sentry 1 | . . 1 Best Kill Streak 3 | . 3 3 Combat Bots Only 3 | . 3 3 Max Kills in Single Turn 2 | . 2 1 Gunslinging . | . . . Exploded 1 | . 1 . Melee . | . . . Uniques/NPCs Destroyed . | . . . Combat | -11 -10 -9 -------- Run | Scr Mat Mat Damage Taken 1526 | . 256 1270 Core 429 | . 20 409 Absorbed by Shields . | . . . Core Remaining (%) 96 | 100 92 . Volleys Fired 39 | . 11 28 Largest 2 | . 2 2 Hottest 100 | . 50 100 Shots Fired 72 | . 19 53 Gun 62 | . 11 51 Cannon . | . . . Launcher 9 | . 8 1 Special 1 | . . 1 Kinetic 52 | . 11 41 Thermal 11 | . . 11 Explosive 9 | . 8 1 Electromagnetic . | . . . Robot Hit Streak 20 | . 2 20 Robot Miss Streak 8 | . 8 1 Penetration Max . | . . . Secondary Targets . | . . . Shots Hit Robots 51 | . 7 44 Core Hits 25 | . 9 16 Critical Hits . | . . . Critical Kills . | . . . Critical Parts Destroyed . | . . . Melee Attacks . | . . . Impact . | . . . Slashing . | . . . Piercing . | . . . Sneak Attacks . | . . . Combat Hostiles . | . . . Follow-up Attacks . | . . . Damage Inflicted 1153 | . 609 544 Guns 569 | . 71 498 Cannons . | . . . Explosions 559 | . 538 21 Melee . | . . . Ramming 1 | . . 1 Kinetic 493 | . 71 422 Thermal 100 | . . 100 Explosive 559 | . 538 21 Electromagnetic . | . . . Impact . | . . . Slashing . | . . . Piercing . | . . . Highest Corruption . | . . . Average Corruption . | . . . Corruption Purged . | . . . Overload Shots . | . . . Overflow Damage 66 | . 66 . Projectiles . | . . . Explosions 66 | . 66 . Melee . | . . . Knockbacks . | . . . Impact . | . . . Kinetic . | . . . Secondary . | . . . Self-Inflicted Damage 129 | . 102 27 Shots 5 | . 4 1 Rammed 2 | . . 2 Targets Rammed 2 | . . 2 Kicked . | . . . Crushed . | . . . Highest Temperature 18 | . . 18 Average Temperature 8 | . . 8 Received Heat Transfer 609 | . 12 597 Siege Activations . | . . . Robots Corrupted . | . . . Combat Hostiles . | . . . Parts Fried . | . . . Impact Corruptions . | . . . Robots Melted . | . . . Combat Hostiles . | . . . Parts Melted . | . . . Heat Transferred 225 | . . 225 Parts Sabotaged . | . . . Parts Stolen . | . . . Parts Stripped . | . . . Power Chain Reactions . | . . . Missiles Intercepted . | . . . Alert | -11 -10 -9 ------- Run | Scr Mat Mat Peak Influence 200 | . 192 200 Initial 80 | . . 80 Average 85 | . 62 128 Maximum Alert Level 1 | . . 1 Low Security (%) 91 | 100 100 81 Level 1 8 | . . 18 Level 2 . | . . . Level 3 . | . . . Level 4 . | . . . Level 5 . | . . . High Security . | . . . Max Security . | . . . Squads Dispatched 4 | . 1 3 Investigation 4 | . 1 3 Extermination . | . . . Reinforcement . | . . . Assault . | . . . Garrison . | . . . Intercept . | . . . Construction Impeded . | . . . Haulers Reinforced . | . . . Stealth | -11 -10 -9 --------- Run | Scr Mat Mat Distress Signals 1 | . . 1 Communications Jammed . | . . . Distress Signals . | . . . Times Spotted 29 | . 10 19 Peak Tracking Total 10 | . 6 10 Tactical Retreats 1 | . . 1 Traps | -11 -10 -9 ------- Run | Scr Mat Mat Traps Triggered 1 | . . 1 Indirectly . | . . . Trap Hack Attempts . | . . . Triggered . | . . . Disarmed . | . . . Reprogrammed . | . . . Reused . | . . . Traps Extracted . | . . . Installed . | . . . Triggered . | . . . Machines | -11 -10 -9 ---------- Run | Scr Mat Mat Machines Disabled 2 | . 2 . Max in Single Turn 1 | . 1 . Machines Sabotaged . | . . . Garrisons Compromised . | . . . Overloaded Fab Kills . | . . . Fab Network Shutdowns . | . . . Hacking | -11 -10 -9 --------- Run | Scr Mat Mat Machines Accessed 7 | . 4 3 Terminals 5 | . 3 2 Fabricators . | . . . Repair Stations . | . . . Recycling Units 2 | . 1 1 Scanalyzers . | . . . Garrison Access . | . . . Total Hacks 20 | . 10 10 Successful 7 | . 5 2 Failed 13 | . 5 8 Catastrophic 5 | . 2 3 Database Lockouts . | . . . Manual 1 | . 1 . Terminals 11 | . 6 5 Fabricators . | . . . Repair Stations . | . . . Recycling Units 9 | . 4 5 Scanalyzers . | . . . Garrison Access . | . . . Terminal Hacks 3 | . 2 1 Record 1 | . . 1 Alert Level 1 | . 1 . Patrol Status 1 | . 1 . Fabricator Hacks . | . . . Repair Station Hacks . | . . . Recycling Unit Hacks 4 | . 3 1 Process 1 | . 1 . Report Inventory 2 | . 1 1 Retrieve Matter 1 | . 1 . Scanalyzer . | . . . Garrison Access Hacks . | . . . Unauthorized Hacks . | . . . Terminals . | . . . Fabricators . | . . . Repair Stations . | . . . Recycling Units . | . . . Scanalyzers . | . . . Garrison Access . | . . . Data Cores Recovered . | . . . Used . | . . . Hacking Detections 5 | . 2 3 Full Trace Events 4 | . 1 3 Feedback Events . | . . . Feedback Blocked . | . . . Robot Schematics Acquired . | . . . Robots Built . | . . . Matter . | . . . Time . | . . . Total Robot Build Rating . | . . . Part Schematics Acquired . | . . . Parts Built . | . . . Matter . | . . . Time . | . . . Total Part Build Rating . | . . . Parts Repaired . | . . . Time . | . . . Parts Recycled . | . . . Recycled Matter 30 | . 30 . Retrieved Matter 30 | . 30 . Retrieved Components . | . . . Parts Scanalyzed . | . . . Part Schematics Acquired . | . . . Parts Damaged . | . . . Bothacking | -11 -10 -9 ------------ Run | Scr Mat Mat Used RIF Installer . | . . . Robots Hacked . | . . . Non-combat . | . . . Combat . | . . . Robot Hacks Applied . | . . . Relay Couplers Released . | . . . Robots Rewired . | . . . Allies Hacked . | . . . Hacks Repelled . | . . . Allies | -11 -10 -9 -------- Run | Scr Mat Mat Total Allies . | . . . Largest Group . | . . . Highest-Rated Group . | . . . Highest-Rated Ally . | . . . Total Orders . | . . . Ally Attacks . | . . . Total Damage . | . . . Kills . | . . . Allies Corrupted . | . . . Allies Melted . | . . . Intel | -11 -10 -9 ------- Run | Scr Mat Mat Robot Analysis Total . | . . . Derelict Logs Recovered . | . . . Drone Launches . | . . . Drone Recoveries . | . . . Exploration | -11 -10 -9 ------------- Run | Scr Mat Mat Turns Passed 962 | 121 393 448 Spaces Moved 513 | 73 223 217 Core 78 | 8 . 70 Treads 435 | 65 223 147 Legs . | . . . Wheels . | . . . Hover . | . . . Flight . | . . . Fastest Speed 50 | 50 160 100 Average Speed 157 | 151 160 157 Slowest Speed 250 | 160 160 250 Overloaded Moves . | . . . Propulsion Burnouts . | . . . Robots Hopped . | . . . Cave-ins Triggered . | . . . Exploration Rate (%) 25 | 6 43 26 Regions Visited 2 Branch Regions . Pre-discovered Areas . | . . . Known Exits Taken 1 | . 1 . Unknown Exits Taken 1 | 1 . . Scrap Searched . | . . . Spaces Dug . | . . . Terrain Destroyed 63 | . 56 7 Melee . | . . . Projectile . | . . . AOE 63 | . 56 7 Terrain Rammed . | . . . Walls Destroyed . | . . . Machines Disabled . | . . . Actions | -11 -10 -9 --------- Run | Scr Mat Mat Total 586 | 81 239 266 Wait 11 | . 2 9 Move 511 | 72 222 217 Hop . | . . . Pick Up 5 | 3 2 . Fast Attach 10 | 5 1 4 Attach 5 | 1 . 4 Detach . | . . . Swap 3 | . 1 2 Drop . | . . . Fire 39 | . 11 28 Melee . | . . . Ram 2 | . . 2 Kick . | . . . Crush . | . . . Escape Stasis . | . . . Rewire . | . . . Trap . | . . . Miscellaneous . | . . . Route ------- -11/Scrapyard -10/Materials -9/Materials History --------- Turn | Location | Event 34 | -11/Scrapyard | Discovered new exit (range 15) 122 | -11/Scrapyard | Entered Materials 317 | -10/Materials | Build established: Mutant 468 | -10/Materials | Discovered new exit (range 16) 513 | -10/Materials | Identified exit to Materials 515 | -10/Materials | Entered another Materials area 515 | -9/Materials | Evolved 2 slots: Power x1, Utility x1 787 | -9/Materials | Lost 5 parts (1n1u3w) 884 | -9/Materials | Core integrity fell below 50% 954 | -9/Materials | Core integrity fell below 20% 963 | -9/Materials | Destroyed by S-10 Pest with Light Assault Rifle Last Messages --------------- Aluminum Leg (94%) Heat Sink (76%) Aluminum Leg (78%) Ion Engine (88%) 00835_ ALERT: Suspicious activity at Recycling Unit M001. Dispatching Investigation squad. 00838_ Mining Laser destroyed. 00848_ Acquired 58 matter. 00850_ Acquired 68 matter. 00851_ Lgt. Treads destroyed. 00888_ Lgt. Ion Engine destroyed. 00895_ K-01 Serf cleans the Nuclear Reactor. 00922_ Slammed into U-05 Engineer. 00928_ Imp. Heat Sink destroyed. 00937_ Triggered EMP Trap. 00937_ A bubble of electromagnetic force engulfs the area. 00937_ Door malfunctions. 00938_ Lgt. Ion Engine destroyed. 00940_ Slammed into W-16 Scout. 00961_ Acquired Lgt. Armor Plating. Map ----- +----------------------------------------------------+ | ?????????????????????????????????????????????????? | | ?????????????????????????????????????????????????? | | ?????????????????????????????????????????????????? | | ?????????????????????????????????????????????????? | | ?????????????????????????????????????????????????? | | ?????????????????????????????????????????????????? | | ?????????????????????????????????????????????????? | | ?????????????????????????????????????????????????? | | ?????????????????????????????????????????????????? | | ?????????????????????????????????????????????????? | | ?????????????????????????????????????????????????? | | ?????????????????????????????????????????????????? | | ?????????????????????????????????????????????????? | | ????????????????????????????###+?????????????????? | | ???????????????????????????? ?????????????????? | | ???????????????????????????? ?????????????????? | | ???????????????????????????? ?????????????????? | | ???????????????????????????? #??###????????????? | | ???????????????????????????# #? ?????????????? | | ???????????????????????????# #? ??????????????? | | ???????????????????????????# # ???????????????? | | ???????????????????????????# # ????????????????? | | ??????????????????########## /?????????????????? | | ??????????????????# # #?????????????????? | | ??????????????????? """"" # #?????????????????? | | ??????????????????? """""@ # #?????????????????? | | ??????????????????? """"" s# #?????#???????????? | | ????????????????????""""" ssg ##### ##### #?????? | | ????????????????????""""" #g ????? | | ????????????????????""""" # ????? | | ????????????????????""""" # ????? | | ???????????????????? # #####+##### ??????? | | ????????????????????######## #?????????????????? | | ???????????????????????????# #?????????????????? | | ????????????????????######## #?????????????????? | | ????????????????????# #?????????????????? | | ????????????????????# #?????????????????? | | ????????????????????# #?????????????????? | | ???????? ?????????# ##########???????????????? | | ???????" ?????????# # #???????????????? | | ???????# ?????????# # #???????????????? | | ???????# ?????????# # #???????????????? | | ???????# ?????????# ^ # #???????????????? | | ???????# #????????# / #???????????????? | | ???????# #????????# # #???????????????? | | ?????### #????????### # #???????????????? | | ?????? # #??????????# # #???????????????? | | ??????? #??????????# # #???????????????? | | ???????# #??????????# ##########???????????????? | | ???????# #??????????# #????????????????????????? | +----------------------------------------------------+ Best States ------------- Heat Dissipation 42 Energy Generation 15 Energy Capacity 400 Matter Stores 300 Matter Capacity 300 Sight Range 16 Robot Scan Range 10 Terrain Scan Density 10 Evasion (%) 40 Recoil Reduction 2 Item Schematics ----------------- None Robot Schematics ------------------ None Fabricated ------------ Nothing Alien Tech Used ----------------- None Achievements -------------- None Challenges ------------ None Game ------ Seed RecoilBiocellCleaver Manual? 0 Play Time 00:22:01 Cumulative 161.5 hours Start 2020.09.26 @ 19:27:40 End 2020.09.28 @ 20:10:45 Sessions 2 Manual Loads 0 Difficulty Rogue Special Mode None Game No. 200 Rogue 200 Adventurer 0 Explorer 0 Win Type - Total 1 Types 1/0/0/0/0/0/0/0/0 Lore% 37 Gallery% 62 Achievement% 41 Wizard Run 0 Options --------- ASCII 0 Keyboard 1 Movement Vi Keybinds 0 Fullscreen 1 Font 14/Dina Map View 84x54 Tactical HUD 1 Map Filters NONE Filters NONE Steam 1 RUN: 566c6bc2-3844-48a7-81d9-b44f9dcf4ac8